[Event "Titled Tuesday Blitz March 07 Late 2023"]
[White "Fier, Alexandr"]
[Black "Hirneise, Jens"]
[WhiteFideId "2107139"]
[BlackFideId "24614734"]
[WhiteElo "2610"]
[BlackElo "2345"]
[Result "1-0"]
[Round "02"]
[TimeControl "180+2"]
[Date "2023.03.07"]
[WhiteClock "0:00:50"]
[BlackClock "0:00:01"]

1. c4 {[%clk 0:03:00]}  c6 {[%clk 0:02:58]} 2. Nf3 {[%clk 0:02:58]}  d5 {[%clk 0:02:58]} 3. e3 {[%clk 0:02:59]}  Nf6 {[%clk 0:02:58]} 4. Nc3 {[%clk 0:02:59]}  e6 {[%clk 0:02:57]} 5. b3 {[%clk 0:02:58]}  Bd6 {[%clk 0:02:55]} 6. Bb2 {[%clk 0:02:59]}  O-O {[%clk 0:02:55]} 7. Qc2 {[%clk 0:02:59]}  Qe7 {[%clk 0:02:52]} 8. Be2 {[%clk 0:02:57]}  a6 {[%clk 0:02:51]} 9. d4 {[%clk 0:02:55]}  Nbd7 {[%clk 0:02:50]} 10. O-O {[%clk 0:02:54]}  e5 {[%clk 0:02:49]} 11. cxd5 {[%clk 0:02:53]}  cxd5 {[%clk 0:02:48]} 12. dxe5 {[%clk 0:02:53]}  Nxe5 {[%clk 0:02:47]} 13. Rad1 {[%clk 0:02:54]}  Be6 {[%clk 0:02:28]} 14. Qb1 {[%clk 0:02:42]}  Rfd8 {[%clk 0:02:24]} 15. Rd4 {[%clk 0:02:40]}  Nxf3+ {[%clk 0:02:16]} 16. Bxf3 {[%clk 0:02:39]}  Be5 {[%clk 0:02:16]} 17. Rdd1 {[%clk 0:02:40]}  Rac8 {[%clk 0:02:01]} 18. Ne2 {[%clk 0:02:38]}  Bb8 {[%clk 0:01:50]} 19. Nd4 {[%clk 0:02:35]}  Bg4 {[%clk 0:01:44]} 20. Bxg4 {[%clk 0:02:33]}  Nxg4 {[%clk 0:01:37]} 21. Nf3 {[%clk 0:02:32]}  Ne5 {[%clk 0:01:30]} 22. Nxe5 {[%clk 0:02:31]}  Bxe5 {[%clk 0:01:31]} 23. Bxe5 {[%clk 0:02:32]}  Qxe5 {[%clk 0:01:31]} 24. Rd4 {[%clk 0:02:32]}  Rc6 {[%clk 0:01:30]} 25. Rfd1 {[%clk 0:02:32]}  Rh6 {[%clk 0:01:28]} 26. g3 {[%clk 0:02:32]}  Rhd6 {[%clk 0:01:20]} 27. Qd3 {[%clk 0:02:29]}  f5 {[%clk 0:01:19]} 28. Rc1 {[%clk 0:02:26]}  R6d7 {[%clk 0:01:10]} 29. Rc5 {[%clk 0:02:23]}  h6 {[%clk 0:01:07]} 30. a4 {[%clk 0:02:18]}  Kh8 {[%clk 0:01:06]} 31. b4 {[%clk 0:02:18]}  Rd6 {[%clk 0:01:00]} 32. a5 {[%clk 0:02:18]}  R6d7 {[%clk 0:00:58]} 33. h4 {[%clk 0:02:19]}  Rd6 {[%clk 0:00:56]} 34. h5 {[%clk 0:02:18]}  Qe6 {[%clk 0:00:51]} 35. b5 {[%clk 0:02:03]}  Qe5 {[%clk 0:00:48]} 36. b6 {[%clk 0:01:59]}  f4 {[%clk 0:00:47]} 37. Rxf4 {[%clk 0:01:55]}  Qxh5 {[%clk 0:00:47]} 38. Rf5 {[%clk 0:01:55]}  Qg6 {[%clk 0:00:45]} 39. Rc7 {[%clk 0:01:36]}  d4 {[%clk 0:00:43]} 40. e4 {[%clk 0:01:25]}  Rc6 {[%clk 0:00:39]} 41. Rxb7 {[%clk 0:01:20]}  Rc3 {[%clk 0:00:39]} 42. Qd2 {[%clk 0:01:15]}  Qc6 {[%clk 0:00:34]} 43. Rff7 {[%clk 0:01:12]}  Qxe4 {[%clk 0:00:26]} 44. Rxg7 {[%clk 0:01:10]}  Rc6 {[%clk 0:00:09]} 45. Rh7+ {[%clk 0:00:51]}  Qxh7 {[%clk 0:00:06]} 46. Rxh7+ {[%clk 0:00:52]}  Kxh7 {[%clk 0:00:07]} 47. Qf4 {[%clk 0:00:51]}  Rcd6 {[%clk 0:00:02]} 48. b7 {[%clk 0:00:51]}  d3 {[%clk 0:00:02]} 49. b8=Q {[%clk 0:00:51]}  d2 {[%clk 0:00:02]} 50. Qf7+ {[%clk 0:00:50]}  Kh8 {[%clk 0:00:01]} 51. Qb2+ {[%clk 0:00:50]} 1-0


[Site "https://www.chess.com"]

[Event "Titled Tuesday Blitz March 07 Late 2023"]
[White "Albornoz Cabrera, Carlos Daniel"]
[Black "Petrovic, Aleksa"]
[WhiteFideId "3518736"]
[BlackFideId "967629"]
[WhiteElo "2501"]
[BlackElo "2326"]
[Result "1-0"]
[Round "02"]
[TimeControl "180+2"]
[Date "2023.03.07"]
[WhiteClock "0:00:50"]
[BlackClock "0:00:27"]

1. Nf3 {[%clk 0:03:00]}  Nf6 {[%clk 0:02:59]} 2. c4 {[%clk 0:03:01]}  e6 {[%clk 0:02:59]} 3. Nc3 {[%clk 0:03:01]}  d5 {[%clk 0:02:59]} 4. d4 {[%clk 0:03:01]}  c6 {[%clk 0:02:59]} 5. Bg5 {[%clk 0:03:01]}  dxc4 {[%clk 0:03:00]} 6. e4 {[%clk 0:03:01]}  b5 {[%clk 0:03:00]} 7. e5 {[%clk 0:03:01]}  h6 {[%clk 0:03:01]} 8. Bh4 {[%clk 0:03:02]}  g5 {[%clk 0:03:02]} 9. Nxg5 {[%clk 0:03:02]}  hxg5 {[%clk 0:03:03]} 10. Bxg5 {[%clk 0:03:03]}  Nbd7 {[%clk 0:03:03]} 11. g3 {[%clk 0:03:03]}  Bb7 {[%clk 0:03:04]} 12. Bg2 {[%clk 0:03:02]}  Qb6 {[%clk 0:03:05]} 13. exf6 {[%clk 0:03:03]}  O-O-O {[%clk 0:03:05]} 14. O-O {[%clk 0:03:01]}  c5 {[%clk 0:03:05]} 15. d5 {[%clk 0:03:01]}  b4 {[%clk 0:03:06]} 16. Rb1 {[%clk 0:03:02]}  Qa6 {[%clk 0:03:06]} 17. dxe6 {[%clk 0:02:56]}  Bxg2 {[%clk 0:03:06]} 18. e7 {[%clk 0:02:56]}  Bxf1 {[%clk 0:03:07]} 19. Kxf1 {[%clk 0:02:57]}  Bxe7 {[%clk 0:03:02]} 20. fxe7 {[%clk 0:02:57]}  Rdg8 {[%clk 0:03:03]} 21. Ne4 {[%clk 0:02:57]}  Rxg5 {[%clk 0:03:03]} 22. Nxg5 {[%clk 0:02:56]}  Qg6 {[%clk 0:02:58]} 23. h4 {[%clk 0:02:39]}  Re8 {[%clk 0:02:54]} 24. Rc1 {[%clk 0:02:34]}  Ne5 {[%clk 0:02:47]} 25. Qd5 {[%clk 0:02:28]}  Qd3+ {[%clk 0:02:05]} 26. Qxd3 {[%clk 0:02:28]}  Nxd3 {[%clk 0:02:06]} 27. Rxc4 {[%clk 0:02:28]}  Rxe7 {[%clk 0:02:06]} 28. Ne4 {[%clk 0:02:16]}  f5 {[%clk 0:01:46]} 29. Nxc5 {[%clk 0:02:13]}  Rc7 {[%clk 0:01:44]} 30. h5 {[%clk 0:01:47]}  Nxc5 {[%clk 0:00:48]} 31. h6 {[%clk 0:01:47]}  Kb7 {[%clk 0:00:42]} 32. h7 {[%clk 0:01:44]}  Rxh7 {[%clk 0:00:42]} 33. Rxc5 {[%clk 0:01:45]}  Kb6 {[%clk 0:00:41]} 34. Rxf5 {[%clk 0:01:33]}  Rh1+ {[%clk 0:00:41]} 35. Kg2 {[%clk 0:01:34]}  Rb1 {[%clk 0:00:42]} 36. b3 {[%clk 0:01:34]}  Rb2 {[%clk 0:00:36]} 37. g4 {[%clk 0:01:34]}  Rxa2 {[%clk 0:00:36]} 38. g5 {[%clk 0:01:34]}  Rc2 {[%clk 0:00:31]} 39. g6 {[%clk 0:01:34]}  Rc8 {[%clk 0:00:30]} 40. g7 {[%clk 0:01:33]}  Rg8 {[%clk 0:00:29]} 41. Rg5 {[%clk 0:01:24]}  a5 {[%clk 0:00:29]} 42. f4 {[%clk 0:01:03]}  a4 {[%clk 0:00:28]} 43. bxa4 {[%clk 0:01:03]}  b3 {[%clk 0:00:27]} 44. Rb5+ {[%clk 0:00:52]}  Kc6 {[%clk 0:00:28]} 45. Rxb3 {[%clk 0:00:52]}  Rxg7+ {[%clk 0:00:28]} 46. Kf3 {[%clk 0:00:52]}  Kd6 {[%clk 0:00:28]} 47. a5 {[%clk 0:00:52]}  Ra7 {[%clk 0:00:27]} 48. Ra3 {[%clk 0:00:52]}  Ra6 {[%clk 0:00:26]} 49. Kg4 {[%clk 0:00:50]}  Ke6 {[%clk 0:00:27]} 50. Kg5 {[%clk 0:00:50]}  Kf7 {[%clk 0:00:27]} 51. Kf5 {[%clk 0:00:50]}  Rf6+ {[%clk 0:00:27]} 52. Ke5 {[%clk 0:00:49]}  Re6+ {[%clk 0:00:27]} 53. Kd5 {[%clk 0:00:50]} 1-0


[Site "https://www.chess.com"]

[Event "Titled Tuesday Blitz March 07 Late 2023"]
[White "Barp, Alberto"]
[Black "Romkachess"]
[WhiteFideId "872555"]
[WhiteElo "2313"]
[BlackElo "2521"]
[Result "1-0"]
[Round "02"]
[TimeControl "180+2"]
[Date "2023.03.07"]
[WhiteClock "0:01:03"]
[BlackClock "0:00:29"]

1. d4 {[%clk 0:03:00]}  Nf6 {[%clk 0:02:57]} 2. Nf3 {[%clk 0:02:52]}  e6 {[%clk 0:02:54]} 3. Bg5 {[%clk 0:02:47]}  Be7 {[%clk 0:02:51]} 4. Nbd2 {[%clk 0:02:47]}  d5 {[%clk 0:02:47]} 5. e3 {[%clk 0:02:46]}  c5 {[%clk 0:02:43]} 6. c3 {[%clk 0:02:44]}  Nc6 {[%clk 0:02:43]} 7. Bd3 {[%clk 0:02:44]}  h6 {[%clk 0:02:38]} 8. Bh4 {[%clk 0:02:44]}  O-O {[%clk 0:02:36]} 9. Ne5 {[%clk 0:02:36]}  Nxe5 {[%clk 0:02:33]} 10. dxe5 {[%clk 0:02:37]}  Nd7 {[%clk 0:02:34]} 11. Bg3 {[%clk 0:02:33]}  f5 {[%clk 0:02:33]} 12. exf6 {[%clk 0:02:31]}  Bxf6 {[%clk 0:02:29]} 13. e4 {[%clk 0:02:27]}  Be5 {[%clk 0:02:15]} 14. Nf3 {[%clk 0:02:21]}  Bxg3 {[%clk 0:01:54]} 15. hxg3 {[%clk 0:02:22]}  Qe7 {[%clk 0:01:37]} 16. Qe2 {[%clk 0:02:20]}  Qd6 {[%clk 0:01:11]} 17. Rd1 {[%clk 0:02:09]}  Ne5 {[%clk 0:01:06]} 18. Nxe5 {[%clk 0:01:56]}  Qxe5 {[%clk 0:01:07]} 19. exd5 {[%clk 0:01:44]}  Qxd5 {[%clk 0:00:50]} 20. Bb1 {[%clk 0:01:05]}  Qxg2 {[%clk 0:00:34]} 21. Be4 {[%clk 0:01:04]}  Rxf2 {[%clk 0:00:28]} 22. Bxg2 {[%clk 0:01:03]}  Rxg2 {[%clk 0:00:29]} 23. Qxg2 {[%clk 0:01:03]} 1-0


[Site "https://www.chess.com"]

[Event "Titled Tuesday Blitz March 07 Late 2023"]
[White "Adewumi, Tanitoluwa"]
[Black "Berezin, Viktor"]
[WhiteFideId "30966396"]
[BlackFideId "14107872"]
[WhiteElo "2748"]
[BlackElo "2310"]
[Result "0-1"]
[Round "02"]
[TimeControl "180+2"]
[Date "2023.03.07"]
[WhiteClock "0:00:07"]
[BlackClock "0:00:11"]

1. e4 {[%clk 0:03:00]}  g6 {[%clk 0:02:58]} 2. d4 {[%clk 0:02:59]}  Bg7 {[%clk 0:02:58]} 3. Bc4 {[%clk 0:02:59]}  d6 {[%clk 0:02:57]} 4. Be3 {[%clk 0:02:59]}  Nf6 {[%clk 0:02:57]} 5. Nc3 {[%clk 0:02:59]}  O-O {[%clk 0:02:57]} 6. Nf3 {[%clk 0:03:00]}  c6 {[%clk 0:02:57]} 7. O-O {[%clk 0:03:00]}  b5 {[%clk 0:02:57]} 8. Bd3 {[%clk 0:03:00]}  Nbd7 {[%clk 0:02:57]} 9. h3 {[%clk 0:02:59]}  e5 {[%clk 0:02:57]} 10. a4 {[%clk 0:02:59]}  b4 {[%clk 0:02:55]} 11. Ne2 {[%clk 0:02:59]}  a5 {[%clk 0:02:53]} 12. c3 {[%clk 0:02:59]}  Qe7 {[%clk 0:02:50]} 13. Re1 {[%clk 0:02:52]}  bxc3 {[%clk 0:02:49]} 14. bxc3 {[%clk 0:02:51]}  Ba6 {[%clk 0:02:44]} 15. Bxa6 {[%clk 0:02:48]}  Rxa6 {[%clk 0:02:44]} 16. Qd3 {[%clk 0:02:47]}  Raa8 {[%clk 0:02:43]} 17. Nd2 {[%clk 0:02:26]}  d5 {[%clk 0:02:40]} 18. exd5 {[%clk 0:02:20]}  cxd5 {[%clk 0:02:32]} 19. Qb5 {[%clk 0:02:13]}  Rfb8 {[%clk 0:02:26]} 20. Qc6 {[%clk 0:01:43]}  Rc8 {[%clk 0:02:20]} 21. Qb5 {[%clk 0:01:42]}  Rcb8 {[%clk 0:02:20]} 22. Qd3 {[%clk 0:01:38]}  Rb2 {[%clk 0:02:01]} 23. dxe5 {[%clk 0:01:16]}  Nxe5 {[%clk 0:02:01]} 24. Qd4 {[%clk 0:01:15]}  Nc6 {[%clk 0:01:55]} 25. Qh4 {[%clk 0:01:09]}  Rab8 {[%clk 0:01:17]} 26. Nf4 {[%clk 0:00:49]}  Qd7 {[%clk 0:01:04]} 27. Rad1 {[%clk 0:00:40]}  Rc2 {[%clk 0:01:02]} 28. Nf3 {[%clk 0:00:23]}  Rxc3 {[%clk 0:00:57]} 29. Nd4 {[%clk 0:00:12]}  Rc4 {[%clk 0:00:51]} 30. Nxc6 {[%clk 0:00:07]}  Qxc6 {[%clk 0:00:51]} 31. Qg5 {[%clk 0:00:07]}  d4 {[%clk 0:00:24]} 32. Bxd4 {[%clk 0:00:06]}  Ne4 {[%clk 0:00:14]} 33. Qe7 {[%clk 0:00:02]}  Bxd4 {[%clk 0:00:10]} 34. Nd5 {[%clk 0:00:02]}  Bxf2+ {[%clk 0:00:07]} 35. Kh1 {[%clk 0:00:02]}  Bxe1 {[%clk 0:00:07]} 36. Qe5 {[%clk 0:00:01]}  Qb7 {[%clk 0:00:06]} 37. Ne7+ {[%clk 0:00:01]}  Kf8 {[%clk 0:00:06]} 38. Nd5 {[%clk 0:00:01]}  f6 {[%clk 0:00:05]} 39. Qe6 {[%clk 0:00:01]}  Qf7 {[%clk 0:00:04]} 40. Qb6 {[%clk 0:00:01]}  Rxb6 {[%clk 0:00:04]} 41. Nxb6 {[%clk 0:00:01]}  Nf2+ {[%clk 0:00:05]} 42. Kg1 {[%clk 0:00:01]}  Nxd1 {[%clk 0:00:06]} 43. Nxc4 {[%clk 0:00:02]}  Qxc4 {[%clk 0:00:07]} 44. Kh2 {[%clk 0:00:01]}  Bb4 {[%clk 0:00:08]} 45. Kg1 {[%clk 0:00:02]}  Bc5+ {[%clk 0:00:09]} 46. Kh2 {[%clk 0:00:03]}  Qxa4 {[%clk 0:00:09]} 47. Kh1 {[%clk 0:00:04]}  Qc2 {[%clk 0:00:10]} 48. Kh2 {[%clk 0:00:05]}  Qf2 {[%clk 0:00:10]} 49. h4 {[%clk 0:00:05]}  Qg1+ {[%clk 0:00:10]} 50. Kg3 {[%clk 0:00:06]}  Qe3+ {[%clk 0:00:11]} 51. Kh2 {[%clk 0:00:06]}  Nf2 {[%clk 0:00:10]} 52. h5 {[%clk 0:00:07]}  Ng4+ {[%clk 0:00:10]} 53. Kh1 {[%clk 0:00:07]}  Qg1# {[%clk 0:00:11]} 0-1


[Site "https://www.chess.com"]

[Event "Titled Tuesday Blitz March 07 Late 2023"]
[White "Rorrer, Grayson"]
[Black "Roberson, Peter T"]
[WhiteFideId "30944996"]
[BlackFideId "412384"]
[WhiteElo "2200"]
[BlackElo "2346"]
[Result "1-0"]
[Round "02"]
[TimeControl "180+2"]
[Date "2023.03.07"]
[WhiteClock "0:00:04"]
[BlackClock "0:00:15"]

1. c4 {[%clk 0:03:00]}  b6 {[%clk 0:02:58]} 2. Nf3 {[%clk 0:02:56]}  Bb7 {[%clk 0:02:58]} 3. g3 {[%clk 0:02:56]}  Bxf3 {[%clk 0:02:58]} 4. exf3 {[%clk 0:02:57]}  c5 {[%clk 0:02:58]} 5. Bg2 {[%clk 0:02:58]}  Nc6 {[%clk 0:02:59]} 6. O-O {[%clk 0:02:58]}  g6 {[%clk 0:02:59]} 7. d3 {[%clk 0:02:59]}  Bg7 {[%clk 0:02:59]} 8. Nc3 {[%clk 0:02:59]}  Nh6 {[%clk 0:02:59]} 9. a3 {[%clk 0:02:58]}  Nf5 {[%clk 0:02:59]} 10. Rb1 {[%clk 0:02:58]}  O-O {[%clk 0:02:59]} 11. f4 {[%clk 0:02:58]}  Rc8 {[%clk 0:02:58]} 12. Bd2 {[%clk 0:02:58]}  a5 {[%clk 0:02:53]} 13. Na4 {[%clk 0:02:45]}  d6 {[%clk 0:02:37]} 14. Qb3 {[%clk 0:02:28]}  Ncd4 {[%clk 0:02:30]} 15. Qxb6 {[%clk 0:02:26]}  Rb8 {[%clk 0:02:26]} 16. Qxd8 {[%clk 0:02:22]}  Rfxd8 {[%clk 0:02:27]} 17. Bxa5 {[%clk 0:02:20]}  Re8 {[%clk 0:02:17]} 18. b4 {[%clk 0:02:17]}  Nc2 {[%clk 0:02:14]} 19. bxc5 {[%clk 0:02:04]}  dxc5 {[%clk 0:01:44]} 20. Nxc5 {[%clk 0:01:49]}  Nxa3 {[%clk 0:01:34]} 21. Rb7 {[%clk 0:01:40]}  Bd4 {[%clk 0:01:23]} 22. Na6 {[%clk 0:01:13]}  Ra8 {[%clk 0:01:19]} 23. Nc7 {[%clk 0:01:13]}  Rxa5 {[%clk 0:00:41]} 24. Nxe8 {[%clk 0:01:13]}  Nc2 {[%clk 0:00:42]} 25. Rb8 {[%clk 0:01:08]}  Ra2 {[%clk 0:00:37]} 26. Nd6+ {[%clk 0:00:33]}  Kg7 {[%clk 0:00:36]} 27. Nxf5+ {[%clk 0:00:32]}  gxf5 {[%clk 0:00:37]} 28. Ra8 {[%clk 0:00:30]}  Rb2 {[%clk 0:00:35]} 29. Ra5 {[%clk 0:00:26]}  Nb4 {[%clk 0:00:26]} 30. Rxf5 {[%clk 0:00:14]}  Nxd3 {[%clk 0:00:24]} 31. Rd5 {[%clk 0:00:15]}  Bxf2+ {[%clk 0:00:25]} 32. Kh1 {[%clk 0:00:15]}  Nb4 {[%clk 0:00:25]} 33. Rb5 {[%clk 0:00:13]}  Bd4 {[%clk 0:00:24]} 34. c5 {[%clk 0:00:14]}  Bc3 {[%clk 0:00:16]} 35. c6 {[%clk 0:00:12]}  Rc2 {[%clk 0:00:17]} 36. Rc5 {[%clk 0:00:10]}  Nd3 {[%clk 0:00:16]} 37. c7 {[%clk 0:00:07]}  Nxc5 {[%clk 0:00:14]} 38. c8=Q {[%clk 0:00:08]}  Nd3 {[%clk 0:00:15]} 39. Qg4+ {[%clk 0:00:08]}  Kf8 {[%clk 0:00:15]} 40. Qc8+ {[%clk 0:00:07]}  Kg7 {[%clk 0:00:15]} 41. Be4 {[%clk 0:00:04]}  Nf2+ {[%clk 0:00:15]} 42. Rxf2 {[%clk 0:00:04]}  Rxf2 {[%clk 0:00:15]} 43. Qxc3+ {[%clk 0:00:04]} 1-0


[Site "https://www.chess.com"]

[Event "Titled Tuesday Blitz March 07 Late 2023"]
[White "Sokac, Marko"]
[Black "Pulpan, Jakub"]
[WhiteFideId "14531356"]
[BlackFideId "302759"]
[WhiteElo "2355"]
[BlackElo "2484"]
[Result "0-1"]
[Round "02"]
[TimeControl "180+2"]
[Date "2023.03.07"]
[WhiteClock "0:00:43"]
[BlackClock "0:00:18"]

1. e4 {[%clk 0:03:00]}  e5 {[%clk 0:02:49]} 2. Nc3 {[%clk 0:03:00]}  Bb4 {[%clk 0:02:48]} 3. Bc4 {[%clk 0:02:59]}  Bxc3 {[%clk 0:02:48]} 4. dxc3 {[%clk 0:02:59]}  d6 {[%clk 0:02:48]} 5. Be3 {[%clk 0:02:55]}  Nf6 {[%clk 0:02:47]} 6. f3 {[%clk 0:02:55]}  Be6 {[%clk 0:02:40]} 7. Bxe6 {[%clk 0:02:50]}  fxe6 {[%clk 0:02:41]} 8. Qd2 {[%clk 0:02:46]}  Nc6 {[%clk 0:02:33]} 9. O-O-O {[%clk 0:02:41]}  Qe7 {[%clk 0:02:33]} 10. c4 {[%clk 0:02:40]}  O-O-O {[%clk 0:02:30]} 11. Ne2 {[%clk 0:02:40]}  d5 {[%clk 0:02:12]} 12. exd5 {[%clk 0:02:34]}  exd5 {[%clk 0:02:12]} 13. cxd5 {[%clk 0:02:34]}  Rxd5 {[%clk 0:02:06]} 14. Qc3 {[%clk 0:02:19]}  Rhd8 {[%clk 0:02:05]} 15. Rxd5 {[%clk 0:01:44]}  Nxd5 {[%clk 0:02:04]} 16. Qb3 {[%clk 0:01:44]}  e4 {[%clk 0:02:02]} 17. f4 {[%clk 0:01:28]}  Na5 {[%clk 0:02:01]} 18. Qa4 {[%clk 0:01:17]}  Nc6 {[%clk 0:01:54]} 19. Bf2 {[%clk 0:01:08]}  e3 {[%clk 0:01:52]} 20. Bg3 {[%clk 0:01:07]}  Nb6 {[%clk 0:01:20]} 21. Qb5 {[%clk 0:01:04]}  Qe4 {[%clk 0:01:18]} 22. Be1 {[%clk 0:00:51]}  Qxg2 {[%clk 0:01:00]} 23. Rg1 {[%clk 0:00:51]}  Qxh2 {[%clk 0:00:59]} 24. Rxg7 {[%clk 0:00:50]}  Rd5 {[%clk 0:00:35]} 25. Rg8+ {[%clk 0:00:46]}  Kd7 {[%clk 0:00:27]} 26. Rg7+ {[%clk 0:00:43]}  Ke8 {[%clk 0:00:18]} 0-1


[Site "https://www.chess.com"]

[Event "Titled Tuesday Blitz March 07 Late 2023"]
[White "Bernat, David"]
[Black "Fernandez Guillen, Ernesto J."]
[WhiteFideId "2099225"]
[BlackFideId "3512428"]
[WhiteElo "2518"]
[BlackElo "2423"]
[Result "0-1"]
[Round "02"]
[TimeControl "180+2"]
[Date "2023.03.07"]
[WhiteClock "0:00:34"]
[BlackClock "0:00:19"]

1. c4 {[%clk 0:02:59]}  e5 {[%clk 0:02:59]} 2. g3 {[%clk 0:02:59]}  Nc6 {[%clk 0:03:00]} 3. Bg2 {[%clk 0:02:59]}  f5 {[%clk 0:03:01]} 4. Nc3 {[%clk 0:03:00]}  Nf6 {[%clk 0:03:01]} 5. e3 {[%clk 0:03:00]}  d6 {[%clk 0:03:01]} 6. Nge2 {[%clk 0:03:01]}  h6 {[%clk 0:03:01]} 7. d4 {[%clk 0:03:01]}  e4 {[%clk 0:03:01]} 8. f3 {[%clk 0:02:59]}  exf3 {[%clk 0:02:58]} 9. Bxf3 {[%clk 0:03:00]}  g5 {[%clk 0:02:58]} 10. Nd5 {[%clk 0:02:32]}  Bg7 {[%clk 0:02:55]} 11. Nxf6+ {[%clk 0:02:31]}  Qxf6 {[%clk 0:02:56]} 12. Bh5+ {[%clk 0:02:32]}  Kd8 {[%clk 0:02:55]} 13. O-O {[%clk 0:02:07]}  Ne7 {[%clk 0:01:03]} 14. b3 {[%clk 0:01:57]}  c6 {[%clk 0:00:59]} 15. Bb2 {[%clk 0:01:54]}  d5 {[%clk 0:00:57]} 16. Rb1 {[%clk 0:01:41]}  Qe6 {[%clk 0:00:54]} 17. Qd3 {[%clk 0:01:33]}  Bd7 {[%clk 0:00:52]} 18. Ba3 {[%clk 0:01:29]}  Qe4 {[%clk 0:00:48]} 19. Qxe4 {[%clk 0:01:26]}  dxe4 {[%clk 0:00:49]} 20. Rbd1 {[%clk 0:01:08]}  b6 {[%clk 0:00:43]} 21. d5 {[%clk 0:01:08]}  c5 {[%clk 0:00:43]} 22. b4 {[%clk 0:01:08]}  Rc8 {[%clk 0:00:38]} 23. bxc5 {[%clk 0:01:08]}  bxc5 {[%clk 0:00:39]} 24. d6 {[%clk 0:01:01]}  Ng8 {[%clk 0:00:36]} 25. Rd5 {[%clk 0:00:59]}  Nf6 {[%clk 0:00:35]} 26. Bf7 {[%clk 0:00:55]}  Nxd5 {[%clk 0:00:33]} 27. Bxd5 {[%clk 0:00:56]}  Be5 {[%clk 0:00:33]} 28. Rd1 {[%clk 0:00:50]}  Bxd6 {[%clk 0:00:30]} 29. Bxe4 {[%clk 0:00:49]}  Ke7 {[%clk 0:00:26]} 30. Bg2 {[%clk 0:00:45]}  Bc6 {[%clk 0:00:22]} 31. Nc3 {[%clk 0:00:45]}  Bxg2 {[%clk 0:00:21]} 32. Kxg2 {[%clk 0:00:46]}  Ke6 {[%clk 0:00:21]} 33. Nb5 {[%clk 0:00:42]}  Be7 {[%clk 0:00:21]} 34. Nxa7 {[%clk 0:00:39]}  Ra8 {[%clk 0:00:21]} 35. Nc6 {[%clk 0:00:39]}  Rxa3 {[%clk 0:00:21]} 36. Rd2 {[%clk 0:00:34]}  Rha8 {[%clk 0:00:19]} 0-1


[Site "https://www.chess.com"]

[Event "Titled Tuesday Blitz March 07 Late 2023"]
[White "reevecanada"]
[Black "Nasuta, Grzegorz"]
[BlackFideId "1141686"]
[WhiteElo "2515"]
[BlackElo "2449"]
[Result "0-1"]
[Round "02"]
[TimeControl "180+2"]
[Date "2023.03.07"]
[WhiteClock "0:00:01"]
[BlackClock "0:00:08"]

1. e4 {[%clk 0:03:00]}  c5 {[%clk 0:02:57]} 2. Nf3 {[%clk 0:03:00]}  d6 {[%clk 0:02:52]} 3. Bb5+ {[%clk 0:02:59]}  Bd7 {[%clk 0:02:52]} 4. Bxd7+ {[%clk 0:02:59]}  Nxd7 {[%clk 0:02:52]} 5. O-O {[%clk 0:02:59]}  Ngf6 {[%clk 0:02:52]} 6. Re1 {[%clk 0:02:59]}  e6 {[%clk 0:02:52]} 7. c3 {[%clk 0:03:00]}  Be7 {[%clk 0:02:52]} 8. d4 {[%clk 0:03:00]}  cxd4 {[%clk 0:02:53]} 9. cxd4 {[%clk 0:03:01]}  d5 {[%clk 0:02:54]} 10. e5 {[%clk 0:03:01]}  Ne4 {[%clk 0:02:54]} 11. Nbd2 {[%clk 0:03:01]}  Nxd2 {[%clk 0:02:54]} 12. Bxd2 {[%clk 0:03:02]}  O-O {[%clk 0:02:54]} 13. Rc1 {[%clk 0:03:00]}  Rc8 {[%clk 0:02:54]} 14. Qb3 {[%clk 0:02:58]}  Qb6 {[%clk 0:02:54]} 15. Qa4 {[%clk 0:02:55]}  Nb8 {[%clk 0:02:46]} 16. b4 {[%clk 0:02:49]}  a6 {[%clk 0:02:44]} 17. h4 {[%clk 0:02:39]}  h6 {[%clk 0:02:43]} 18. g3 {[%clk 0:02:36]}  Nc6 {[%clk 0:02:38]} 19. a3 {[%clk 0:02:14]}  Nxd4 {[%clk 0:02:17]} 20. Nxd4 {[%clk 0:02:11]}  Qxd4 {[%clk 0:02:18]} 21. Rxc8 {[%clk 0:02:10]}  Rxc8 {[%clk 0:02:16]} 22. Qd7 {[%clk 0:02:09]}  Rc2 {[%clk 0:01:50]} 23. Be3 {[%clk 0:02:08]}  Qc3 {[%clk 0:01:50]} 24. Qe8+ {[%clk 0:01:51]}  Bf8 {[%clk 0:01:45]} 25. Rb1 {[%clk 0:01:31]}  d4 {[%clk 0:01:39]} 26. Bf4 {[%clk 0:01:31]}  Qf3 {[%clk 0:01:32]} 27. Rf1 {[%clk 0:01:27]}  Qxa3 {[%clk 0:01:32]} 28. b5 {[%clk 0:01:23]}  axb5 {[%clk 0:01:00]} 29. Qxb5 {[%clk 0:01:23]}  Qb2 {[%clk 0:00:52]} 30. Qd3 {[%clk 0:01:13]}  b5 {[%clk 0:00:44]} 31. g4 {[%clk 0:01:11]}  Qc3 {[%clk 0:00:27]} 32. Qxb5 {[%clk 0:00:51]}  Qf3 {[%clk 0:00:26]} 33. Bg3 {[%clk 0:00:51]}  Qxg4 {[%clk 0:00:25]} 34. Rb1 {[%clk 0:00:45]}  Rc8 {[%clk 0:00:14]} 35. Qd7 {[%clk 0:00:42]}  Qe4 {[%clk 0:00:10]} 36. Rd1 {[%clk 0:00:38]}  Rc4 {[%clk 0:00:06]} 37. Qb5 {[%clk 0:00:30]}  Qc2 {[%clk 0:00:06]} 38. Ra1 {[%clk 0:00:24]}  d3 {[%clk 0:00:06]} 39. Qe8 {[%clk 0:00:19]}  Rc8 {[%clk 0:00:04]} 40. Qd7 {[%clk 0:00:19]}  d2 {[%clk 0:00:03]} 41. Kh2 {[%clk 0:00:19]}  Qc1 {[%clk 0:00:02]} 42. Rxc1 {[%clk 0:00:06]}  dxc1=Q {[%clk 0:00:03]} 43. Qd3 {[%clk 0:00:05]}  Qc7 {[%clk 0:00:03]} 44. Qe4 {[%clk 0:00:06]}  Qc2 {[%clk 0:00:03]} 45. Qe3 {[%clk 0:00:06]}  Qc3 {[%clk 0:00:04]} 46. Qe4 {[%clk 0:00:06]}  Qc4 {[%clk 0:00:04]} 47. Qe3 {[%clk 0:00:06]}  Qd5 {[%clk 0:00:05]} 48. Qe2 {[%clk 0:00:05]}  Rc3 {[%clk 0:00:05]} 49. Kh3 {[%clk 0:00:05]}  Rc1 {[%clk 0:00:05]} 50. Kg4 {[%clk 0:00:05]}  Qc4+ {[%clk 0:00:05]} 51. Qxc4 {[%clk 0:00:04]}  Rxc4+ {[%clk 0:00:06]} 52. f4 {[%clk 0:00:04]}  g6 {[%clk 0:00:06]} 53. h5 {[%clk 0:00:04]}  gxh5+ {[%clk 0:00:07]} 54. Kxh5 {[%clk 0:00:04]}  Kh7 {[%clk 0:00:07]} 55. Bh2 {[%clk 0:00:04]}  Rc5 {[%clk 0:00:07]} 56. Bg3 {[%clk 0:00:04]}  Rd5 {[%clk 0:00:08]} 57. Bh2 {[%clk 0:00:04]}  Rd3 {[%clk 0:00:08]} 58. Kh4 {[%clk 0:00:02]}  Kg6 {[%clk 0:00:08]} 59. Bg3 {[%clk 0:00:01]}  Be7+ {[%clk 0:00:08]} 0-1


[Site "https://www.chess.com"]